bitfinex-derivatives/quotes_ETHF0:USTF0_20240822
["timestamp","ask_amount","ask_price","bid_price","bid_amount"]
[1724334547000,3.2078,2616.3,2616.2,0.38214]
[1724334547292,0.00981509,2616.5,2616.3,0.38212]
[1724334547691,0.00981509,2616.5,2616.4,0.38211]
[1724334548105,0.00981509,2616.5,2616.4,4.20371]
[1724334549314,0.00981509,2616.5,2616.4,0.38211]
[1724334549604,0.00981509,2616.5,2616.4,3.58991]
[1724334549806,0.00981509,2616.5,2616.4,0.38211]
[1724334550110,0.00981509,2616.5,2615.9,13.206]
[1724334550399,0.39191509,2616.5,2616.4,3.2078]
[1724334550608,0.39191509,2616.5,2616.0,0.76216]
[1724334550609,0.38212,2616.4,2616.0,0.76216]
[1724334550904,0.38212,2616.4,2615.7,0.00471401]
[1724334550905,0.3833,2616.4,2615.7,0.00471401]
[1724334551101,0.38218,2616.0,2615.7,0.00471401]
[1724334551405,0.38215,2616.2,2615.8,3.2078]
[1724334551598,0.38216,2616.1,2615.8,0.38219]
[1724334552106,0.38215,2616.2,2615.8,0.38219]
[1724334552404,1.97495743,2616.3,2615.7,0.38692401]
[1724334552624,1.97495743,2616.2,2615.7,0.00471401]
[1724334552802,0.38217,2616.1,2615.8,0.3822]
[1724334553101,0.38216,2616.1,2615.7,0.00471401]
[1724334553304,0.38216,2616.1,2615.8,0.3822]
[1724334553492,2.35710743,2616.2,2615.9,0.38218]
[1724334553803,1.97495743,2616.2,2616.0,0.38217]
[1724334554001,0.38214,2616.2,2615.9,0.38218]
[1724334554403,0.38214,2616.2,2615.8,0.38219]
[1724334554599,1.97495743,2616.2,2615.7,3.21251401]
[1724334554801,0.38219,2615.9,2615.7,3.21251401]
[1724334555005,0.3822,2615.8,2615.7,0.00471401]
[1724334555196,6.54265743,2615.8,2615.7,0.00471401]
[1724334555399,6.54265743,2615.8,2615.5,0.00572946]
[1724334555400,0.38223,2615.6,2615.5,0.00572946]
[1724334555600,0.38223,2615.6,2614.6,0.3627]
[1724334555601,0.38232,2615.0,2614.6,0.38237]
[1724334555907,0.95568,2615.4,2614.4,7.18509488]
[1724334555908,0.38231,2615.1,2614.7,0.38235]
[1724334556297,0.38234,2614.9,2614.4,3.5902]
[1724334556496,0.74352,2615.0,2614.7,0.00477416]
[1724334556701,0.3612,2615.0,2614.7,0.00477416]
[1724334557004,0.3612,2615.0,2614.7,0.38713416]
[1724334557405,0.74352,2615.0,2614.7,0.00477416]
[1724334557710,0.3612,2615.0,2614.7,0.38712416]
[1724334558508,0.3612,2615.0,2614.7,0.38713416]
[1724334558696,0.74352,2615.0,2614.7,0.00477416]
[1724334558903,0.3612,2615.0,2614.7,0.00477416]
[1724334559210,0.3612,2615.0,2614.7,0.38713416]
[1724334560009,0.3612,2615.0,2614.8,0.38235]
[1724334560313,0.3612,2615.0,2614.7,0.00477416]
[1724334560507,0.3612,2615.0,2614.7,0.38713416]
[1724334560804,0.74352,2615.0,2614.7,0.00477416]
[1724334561798,0.3612,2615.0,2614.7,0.00477416]
[1724334562005,0.38236,2614.7,2614.6,0.00572946]
[1724334562201,0.38236,2614.7,2613.7,3.2078]
[1724334562202,9.8138,2614.7,2613.7,3.2078]
[1724334562507,0.38249,2613.8,2613.7,3.2078]
[1724334562705,3.2078,2614.1,2613.4,0.3825]
[1724334563024,0.38254,2613.5,2613.4,0.00438581]
[1724334563204,3.59034,2613.5,2613.4,0.00438581]
[1724334563410,12.0342,2613.5,2613.4,0.00438581]
[1724334563607,7.0342,2613.5,2613.4,0.00438581]
[1724334563803,0.00572946,2613.7,2613.4,0.00438581]
[1724334564211,0.38252,2613.6,2613.4,0.00438581]
[1724334564606,0.38254,2613.5,2613.4,0.00438581]
[1724334564913,0.38259,2613.2,2612.6,0.38267]
[1724334565209,0.38259,2613.2,2612.5,3.2078]
[1724334565210,4.089,2613.4,2612.5,3.2078]
[1724334565403,0.74338,2613.3,2612.6,0.38266]
[1724334565800,0.38258,2613.2,2612.6,0.38702421]
[1724334565999,0.3608,2613.3,2612.8,0.38263]
[1724334566211,0.74337,2613.3,2612.7,0.38264]
[1724334566415,0.74337,2613.3,2612.6,0.00436421]
[1724334566416,3.2078,2613.2,2612.6,0.00436421]
[1724334566604,0.38261,2613.0,2612.6,0.00436421]
[1724334566799,0.3826,2613.1,2612.6,0.00436421]
[1724334567008,3.2078,2613.2,2612.6,0.38703421]
[1724334567416,3.2078,2613.2,2612.6,0.00436421]
[1724334567712,3.2078,2613.2,2612.7,0.38265]
[1724334567905,3.2078,2613.2,2612.8,0.38263]
[1724334568300,3.2078,2613.2,2612.6,0.00436421]
[1724334568601,3.2078,2613.2,2612.8,0.38262]
[1724334568803,3.2078,2613.2,2613.1,0.38259]
[1724334569032,0.3608,2613.3,2613.2,0.38258]
[1724334569206,0.3608,2613.3,2613.1,0.38259]
[1724334569412,0.3608,2613.3,2612.9,0.38262]
[1724334569601,0.3608,2613.3,2613.0,0.38261]
[1724334570016,0.3608,2613.3,2613.1,0.38259]
[1724334570210,0.3608,2613.3,2612.8,0.38263]
[1724334570411,0.74337,2613.3,2612.7,0.38264]
[1724334570715,0.3608,2613.3,2612.6,0.00436421]
[1724334570909,0.3608,2613.3,2612.8,3.2078]
[1724334571211,0.3608,2613.3,2612.6,0.00436421]
[1724334571412,0.38259,2613.2,2612.8,3.2078]
[1724334571616,0.38259,2613.1,2612.8,3.2078]
[1724334571909,3.97359,2613.2,2612.6,0.00436421]
[1724334572115,3.97359,2613.2,2612.9,0.38262]
[1724334572116,3.2078,2613.2,2612.9,0.38262]
[1724334572415,3.2078,2613.2,2612.6,3.21216421]
[1724334572720,3.2078,2613.2,2613.0,0.38261]
[1724334572921,0.3608,2613.3,2612.7,3.2078]
[1724334573223,0.3608,2613.3,2613.1,0.38259]
[1724334573404,0.3608,2613.3,2612.7,3.2078]
[1724334573811,0.74337,2613.3,2612.9,0.38261]
[1724334574209,0.38258,2613.2,2612.8,3.59043]
[1724334574615,0.3608,2613.3,2613.0,0.3826]
[1724334574817,0.3608,2613.3,2612.8,3.2078]
[1724334575012,0.3608,2613.3,2613.2,0.38258]
[1724334575206,0.3608,2613.3,2612.6,0.00436421]
[1724334575406,0.74338,2613.3,2612.9,0.38262]
[1724334575815,0.3608,2613.3,2613.0,0.38261]
[1724334576110,0.3608,2613.3,2612.8,3.2078]
[1724334576111,3.2078,2613.4,2613.2,0.38257]
[1724334576512,3.2078,2613.4,2613.1,0.38259]
[1724334576817,3.59035,2613.4,2613.1,0.38259]
[1724334577010,0.38257,2613.3,2612.6,0.00436421]
[1724334577212,3.59035,2613.4,2613.1,0.38259]
[1724334577507,3.59035,2613.4,2613.0,0.3826]
[1724334577703,3.59035,2613.4,2613.1,0.38259]
[1724334577903,3.59035,2613.4,2613.0,0.3826]
[1724334578105,3.59035,2613.4,2613.1,0.38259]
[1724334578301,3.2078,2613.4,2613.1,0.38259]
[1724334578507,3.2078,2613.4,2612.8,3.2078]
[1724334578508,3.2078,2613.4,2613.3,0.38256]
[1724334578725,3.2078,2613.4,2612.8,4.1644]
[1724334578726,0.7553,2613.6,2613.2,0.38257]
[1724334578945,0.38254,2613.5,2613.2,0.38257]
[1724334579108,0.7553,2613.6,2612.9,0.3767]
[1724334579506,0.00572946,2613.7,2613.6,0.38252]
[1724334579809,0.00572946,2613.7,2613.6,5.16523]
[1724334580005,0.00572946,2613.7,2613.6,15.80892]
[1724334580218,0.00394716,2614.1,2614.0,0.38246]
[1724334580610,0.00394716,2614.1,2614.0,9.20806]
[1724334580811,3.2078,2614.6,2614.3,0.38242]
[1724334581012,0.3554,2614.9,2614.0,3.2078]
[1724334581013,0.3579,2614.8,2614.0,3.2078]
[1724334581217,0.00574064,2614.7,2614.1,0.00574064]
[1724334581513,0.3824,2614.5,2614.1,0.38819064]
[1724334581715,0.38811064,2614.7,2614.1,0.00574064]
[1724334581919,0.38238,2614.6,2614.2,0.38243]
[1724334582115,0.38241,2614.4,2614.1,3.21354064]
[1724334582345,3.2078,2614.5,2614.1,0.00574064]
[1724334582511,0.3824,2614.4,2614.1,0.00574064]
[1724334583019,0.38242,2614.3,2614.1,0.00574064]
[1724334583215,7.0334,2614.2,2613.3,3.2078]
[1724334583419,0.3686,2614.1,2613.6,0.38252]
[1724334583725,0.75106,2614.1,2613.6,0.38252]
[1724334584026,0.75105,2614.1,2613.6,0.38251]
[1724334584220,0.38247,2614.0,2613.5,0.38253]
[1724334584420,0.38247,2614.0,2613.6,0.38252]
[1724334585116,3.5764,2614.1,2613.6,0.38252]
[1724334585318,3.95886,2614.1,2613.6,0.38252]
[1724334585524,0.38247,2614.0,2613.6,0.38252]
[1724334586012,0.75106,2614.1,2613.7,0.38251]
[1724334586213,0.3686,2614.1,2613.6,0.38251]
[1724334586419,0.38248,2613.9,2613.5,0.38253]
[1724334586615,0.38247,2614.0,2613.6,0.38251]
[1724334587116,3.2078,2614.0,2613.4,0.3601]
[1724334587319,3.2078,2614.0,2613.2,0.38257]
[1724334587320,0.38252,2613.6,2613.2,0.38257]
[1724334587625,3.2078,2613.6,2613.0,3.2078]
[1724334587824,3.2078,2613.6,2612.6,0.00436421]
[1724334587825,0.76305,2613.5,2613.1,0.38259]
[1724334588119,0.76304,2613.5,2613.1,0.38259]
[1724334588726,0.3805,2613.5,2613.1,0.38259]
[1724334588924,0.76305,2613.5,2613.1,0.38259]
[1724334589151,0.38255,2613.4,2613.1,3.59039]
[1724334589313,3.5883,2613.5,2612.6,6.98526421]
[1724334589624,0.3826,2613.1,2612.8,0.38263]
[1724334590817,0.7355,2613.5,2612.8,3.8272]
[1724334591018,0.7355,2613.5,2613.2,0.38257]
[1724334591019,1.11804,2613.5,2613.2,0.38257]
[1724334591213,0.38255,2613.4,2613.1,0.38259]
[1724334591517,0.38256,2613.4,2613.1,0.38259]
[1724334591923,0.7355,2613.5,2613.0,3.2078]
[1724334592118,0.00574064,2613.6,2613.5,0.38254]
[1724334592454,0.00574064,2613.6,2613.0,4.1643]
[1724334592455,0.00574064,2613.6,2613.4,0.38255]
[1724334592921,0.00574064,2613.6,2613.0,3.2078]
[1724334593116,0.00574064,2613.6,2613.5,0.38254]
[1724334593618,0.00574064,2613.6,2613.2,0.38257]
[1724334593821,0.38827064,2613.6,2613.3,0.38255]
[1724334594031,0.38254,2613.5,2613.3,3.2078]
[1724334594226,0.38254,2613.5,2613.3,0.38256]
[1724334594528,0.38255,2613.5,2613.2,0.38258]
[1724334594825,0.00574064,2613.6,2613.5,0.38254]
[1724334595021,0.00574064,2613.6,2613.4,0.38254]
[1724334595022,0.38826064,2613.6,2613.4,0.38254]
[1724334595229,0.38826064,2613.6,2613.3,0.38256]
[1724334595418,0.00574064,2613.6,2613.4,0.38255]
[1724334595619,0.00574064,2613.6,2613.5,0.38254]
[1724334596024,0.00574064,2613.6,2613.5,4.20894]
[1724334597219,0.00574064,2613.6,2613.5,5.16529]
[1724334597936,3.2078,2614.3,2614.1,0.38243]
[1724334598323,0.3615,2614.4,2614.1,3.2078]
[1724334598626,0.3615,2614.4,2614.3,0.38242]
[1724334599228,0.00574064,2614.6,2614.5,0.38239]
[1724334599533,0.00574064,2614.6,2614.5,0.38675495]
[1724334599732,0.00574064,2614.6,2614.5,9.56965495]
[1724334600125,0.00574064,2614.6,2614.5,0.38675495]
[1724334600321,0.00051275,2614.6,2614.5,0.38675495]
[1724334600531,0.00051275,2614.6,2614.5,0.00436495]
[1724334600925,9.20768275,2614.6,2614.5,0.00436495]
[1724334601158,9.20768275,2614.6,2614.1,0.00574064]
[1724334601159,0.38243,2614.3,2614.1,0.00574064]
[1724334601335,0.38243,2614.2,2614.1,0.00574064]
[1724334601553,0.38243,2614.3,2614.1,0.00574064]
[1724334601834,3.2078,2614.5,2614.1,0.00574064]
[1724334601835,3.59023,2614.2,2614.1,0.00574064]
[1724334602036,3.5723,2614.2,2613.2,2.98084009]
[1724334602229,0.38249,2613.8,2613.4,0.00490365]
[1724334602429,3.2078,2613.9,2613.4,0.00490365]
[1724334603127,0.38249,2613.8,2613.4,0.01024015]
[1724334603331,0.3825,2613.8,2613.4,0.01024015]
[1724334603529,0.38251,2613.7,2613.4,0.01024015]
[1724334603733,0.3825,2613.8,2613.4,0.01024015]
[1724334603922,0.38251,2613.7,2613.4,0.01024015]
[1724334604123,0.3825,2613.8,2613.4,0.01024015]
[1724334604930,3.2078,2613.9,2613.4,0.01024015]
[1724334605122,3.5674,2613.9,2613.5,0.38253]
[1724334605323,3.5674,2613.9,2613.4,0.01024015]
[1724334605531,0.3596,2613.9,2613.8,0.38249]
[1724334605729,0.3596,2613.9,2613.4,3.21804015]
[1724334606330,0.74208,2613.9,2613.4,0.01024015]
[1724334606533,0.3825,2613.8,2613.4,0.01024015]
[1724334606832,3.59032,2613.7,2613.4,0.01024015]
[1724334607029,0.38252,2613.6,2613.4,0.01024015]
[1724334607230,3.2078,2613.7,2613.4,0.01024015]
[1724334607737,2.34200142,2613.9,2613.5,0.38254]
[1724334607936,5.57270142,2613.8,2613.4,0.01024015]
[1724334608162,1.98240142,2613.7,2613.4,0.01024015]
[1724334608338,9.01660142,2613.8,2613.4,0.01024015]
[1724334608537,0.95639,2613.4,2612.5,3.2078]
[1724334608748,0.38259,2613.2,2612.7,0.38265]
[1724334608929,2.67526906,2613.3,2612.5,3.2078]
[1724334609336,0.3474,2613.3,2612.5,3.2078]
[1724334609638,3.59612064,2613.2,2612.5,0.00445154]
[1724334609825,5.1925097,2613.2,2612.5,0.00445154]
[1724334610138,0.38267,2612.6,2612.5,0.00445154]
[1724334610327,0.38594933,2612.6,2612.5,0.00445154]
[1724334610669,7.42174933,2612.6,2612.5,0.00445154]
[1724334610832,7.03907933,2612.6,2612.5,0.00445154]
[1724334611029,0.00327933,2612.6,2612.5,0.00445154]
[1724334611433,0.00327933,2612.6,2612.2,3.2078]
[1724334611826,0.00327933,2612.6,2612.5,0.38268]
[1724334612029,0.00327933,2612.6,2612.5,3.59048]
[1724334612340,0.00327933,2612.6,2612.5,4.21068]
[1724334612525,0.00327933,2612.6,2612.5,0.00445218]
[1724334612731,0.00327933,2612.6,2612.5,0.38713218]
[1724334612941,0.00327933,2612.6,2612.5,4.21513218]
[1724334613839,0.00327933,2612.6,2612.5,9.21513218]
[1724334614038,9.33e-06,2612.6,2612.5,9.21513218]
[1724334614243,0.00574064,2613.2,2613.1,0.38259]
[1724334614631,0.00574064,2613.2,2613.1,9.20899]
[1724334614841,0.00574064,2613.2,2613.1,4.20899]
[1724334615238,0.00574064,2613.2,2613.1,3.8264]
[1724334615239,0.00572536,2613.2,2613.1,3.8264]
[1724334615540,0.00572536,2613.2,2613.0,0.3481]
[1724334615839,0.00572536,2613.2,2612.9,3.21224222]
[1724334615840,0.00572536,2613.2,2612.9,0.00444222]
[1724334616037,0.00572536,2613.2,2612.9,0.38706222]
[1724334616230,0.00572536,2613.2,2612.9,0.00444222]
[1724334616433,0.00572536,2613.2,2613.1,3.59039]
[1724334616628,0.00572536,2613.2,2613.1,3.2078]
[1724334617379,0.38261,2613.0,2612.9,0.00444222]
[1724334617639,12.03992536,2613.2,2612.5,0.00445218]
[1724334617640,0.38267,2612.6,2612.5,0.00445218]
[1724334617839,0.3827,2612.4,2611.9,3.2078]
[1724334618234,0.361,2612.5,2611.9,3.2078]
[1724334618433,0.3718,2612.3,2611.9,3.2078]
[1724334618739,0.3718,2612.3,2611.5,0.38282]
[1724334618945,0.38278,2611.9,2611.5,0.00451117]
[1724334619141,0.38281,2611.6,2611.5,0.00451117]
[1724334619339,9.8138,2611.7,2610.8,3.2078]
[1724334619533,3.2078,2611.4,2610.5,3.2078]
[1724334619733,0.3851,2611.5,2610.8,3.59073]
[1724334619948,0.3851,2611.5,2611.1,3.2078]
[1724334620336,0.3851,2611.5,2611.1,0.00288888]
[1724334620531,0.00574064,2611.4,2611.1,0.00288888]
[1724334620844,0.00574064,2611.4,2611.3,0.38286]
[1724334621236,0.00574064,2611.4,2611.2,0.38287]
[1724334621442,0.00574064,2611.4,2611.3,0.38286]
[1724334621641,0.00574064,2611.4,2611.3,5.38286]
[1724334621843,0.00574064,2611.4,2611.3,9.21246]
[1724334622236,0.00574064,2611.4,2611.3,9.57226]
[1724334622550,0.00574064,2611.4,2611.3,4.57226]
[1724334622845,6.4e-07,2611.4,2611.3,9.57226]
[1724334623838,6.4e-07,2611.4,2611.3,4.57226]
[1724334624232,6.4e-07,2611.4,2611.3,9.57226]
[1724334624443,6.4e-07,2611.4,2611.3,9.76593478]
[1724334624641,0.371,2612.3,2611.4,0.95711]
[1724334624847,0.3851,2612.6,2612.2,3.2078]
[1724334625044,3.2078,2613.1,2612.6,0.38266]
[1724334625045,0.3698,2612.9,2612.6,0.38266]
[1724334625236,0.3698,2612.9,2612.2,3.2078]
[1724334625237,0.38265,2612.8,2612.2,3.2078]
[1724334625438,0.75242,2612.9,2612.2,3.2078]
[1724334625647,0.38266,2612.7,2612.3,0.00574064]
[1724334625846,3.2078,2612.7,2612.3,0.00574064]
[1724334626037,3.2078,2612.7,2611.7,3.2078]
[1724334626038,3.2078,2612.4,2611.7,3.2078]
[1724334626267,0.7419,2612.3,2611.7,3.2078]
[1724334626747,3.8288,2612.2,2611.7,3.2078]
[1724334626948,0.38278,2611.8,2611.7,3.2078]
[1724334627146,0.38275,2612.0,2611.7,3.2078]
[1724334627343,4.21155,2612.0,2611.7,3.2078]
[1724334627549,3.8288,2611.9,2611.7,3.2078]
[1724334627948,3.8288,2611.8,2611.7,3.2078]
[1724334628249,0.38284,2611.5,2611.1,0.00288888]
[1724334628550,0.3825,2611.4,2611.1,0.00288888]
[1724334628750,0.3825,2611.4,2611.2,3.2078]
[1724334629046,3.2078,2612.2,2611.2,3.2078]
[1724334629242,0.3647,2612.3,2611.5,3.2078]
[1724334629243,0.7532,2612.1,2611.5,3.2078]
[1724334629447,1.13595,2612.1,2611.5,3.59062]
[1724334629751,1.13595,2612.1,2611.1,0.00288888]
[1724334629752,4.582,2612.1,2611.1,0.00288888]
[1724334629941,3.2078,2611.9,2611.1,0.00288888]
[1724334630351,0.7532,2612.1,2611.1,0.00288888]
[1724334630540,0.38278,2611.9,2611.3,0.38285]
[1724334630736,0.7532,2612.1,2611.2,3.2078]
[1724334630737,0.38278,2611.8,2611.2,3.2078]
[1724334630936,0.3828,2611.7,2611.2,3.59067]
[1724334631551,0.3828,2611.7,2611.2,0.38286]
[1724334631748,0.3828,2611.7,2611.2,3.59066]
[1724334632147,3.2078,2611.9,2611.2,3.59066]
[1724334632344,0.38279,2611.8,2611.3,0.38286]
[1724334632657,4.8422,2612.1,2611.8,0.38278]
[1724334632953,3.2078,2612.2,2611.8,0.38278]
[1724334632954,3.2078,2612.2,2611.8,3.2078]
[1724334633154,3.59053,2612.2,2611.8,3.59058]
[1724334633344,3.59053,2612.2,2611.4,3.2078]
[1724334633345,3.2078,2612.2,2611.4,3.2078]
[1724334633654,3.2078,2612.2,2611.7,3.2078]
[1724334633846,3.2078,2612.2,2611.3,3.5568]
[1724334634056,0.365,2612.1,2611.3,3.5568]
[1724334634249,0.3828,2611.7,2611.3,3.5568]
[1724334634455,0.3707,2612.0,2611.4,3.2078]
[1724334634951,0.3828,2611.8,2611.4,0.38284]
[1724334635257,0.3707,2612.0,2611.3,0.38285]
[1724334635258,0.3828,2611.7,2611.3,0.38285]
[1724334635463,3.2078,2611.9,2611.1,0.00288888]
[1724334635751,3.2078,2611.9,2611.5,0.38282]
[1724334635752,0.38278,2611.9,2611.5,0.38282]
[1724334635959,6.89374064,2612.8,2611.7,3.2078]
[1724334635960,4.089,2612.5,2611.7,3.2078]
[1724334636150,0.7408,2612.6,2612.0,3.2078]
[1724334636348,0.7408,2612.6,2611.5,0.3852]
[1724334636349,3.2078,2612.4,2611.5,0.3852]
[1724334636546,0.7408,2612.6,2611.5,0.3852]
[1724334636852,0.7408,2612.6,2611.9,0.38276]
[1724334637053,0.7408,2612.6,2611.7,3.2078]
[1724334637249,0.7408,2612.6,2611.8,0.38278]
[1724334637250,0.38273,2612.2,2611.8,0.38278]
[1724334637456,0.38272,2612.3,2611.9,0.38277]
[1724334637655,0.38272,2612.3,2611.7,3.2078]
[1724334637656,0.95671,2612.5,2611.7,3.59059]
[1724334637961,0.38274,2612.1,2611.7,3.59059]
[1724334638153,0.38274,2612.1,2611.7,3.2078]
[1724334638347,0.38273,2612.2,2611.8,0.38278]
[1724334639047,0.38272,2612.3,2611.7,3.2078]
[1724334639253,3.5905,2612.4,2612.0,3.59055]
[1724334639458,3.2078,2612.4,2612.0,3.2078]
[1724334639657,3.2078,2612.4,2612.1,0.38273]
[1724334639854,3.2078,2612.4,2612.0,3.2078]
[1724334639855,0.38274,2612.2,2612.0,3.2078]
[1724334640155,0.38274,2612.2,2611.2,3.2078]
[1724334640156,3.828,2612.1,2611.2,3.2078]
[1724334640353,0.38279,2611.8,2611.4,0.38283]
[1724334640655,0.38279,2611.8,2611.2,3.2078]
[1724334640656,0.38281,2611.6,2611.3,0.38285]
[1724334641042,0.3791,2611.9,2611.2,3.2078]
[1724334641043,0.38281,2611.7,2611.2,3.2078]
[1724334641249,0.3791,2611.9,2611.1,0.73406888]
[1724334641250,0.38284,2611.5,2611.1,0.73406888]
[1724334641455,11.5055,2611.9,2611.1,0.00288888]
[1724334641657,3.2078,2611.6,2611.1,0.00288888]
[1724334641990,6.619,2611.7,2611.1,3.21068888]
[1724334642145,0.38286,2611.3,2611.1,3.21068888]
[1724334642348,0.38286,2611.3,2611.1,0.00288888]
[1724334642349,0.38287,2611.2,2611.1,0.00288888]
[1724334642545,4.5728,2611.2,2611.1,0.00288888]
[1724334644254,0.00392556,2611.3,2611.1,0.00288888]
[1724334644652,3.83352556,2611.3,2611.1,0.00288888]
[1724334644855,0.38287,2611.2,2611.1,0.00288888]
[1724334645158,4.21247,2611.2,2611.1,0.00288888]
[1724334645454,0.00392556,2611.3,2611.1,0.00288888]
[1724334645662,3.83352556,2611.3,2611.1,0.00288888]
[1724334645853,4.21247,2611.2,2611.1,0.00288888]
[1724334646050,3.8296,2611.2,2611.1,0.00288888]
[1724334646246,4.21247,2611.2,2611.1,0.00288888]
[1724334646453,3.8296,2611.2,2611.1,0.00288888]
[1724334646653,0.38678556,2611.3,2611.1,0.00288888]
[1724334646853,0.00392556,2611.3,2611.1,0.00288888]
[1724334647061,0.00392556,2611.3,2611.2,0.38287]
[1724334647260,0.00392556,2611.3,2611.1,0.00288888]
[1724334647454,0.00392556,2611.3,2611.2,0.38287]
[1724334647658,0.00392556,2611.3,2611.2,7.42027]
[1724334648196,0.00392556,2611.3,2611.2,13.37745]
[1724334648355,0.00392556,2611.3,2611.2,9.54785]
[1724334648661,0.00574064,2611.5,2611.4,0.38284]
[1724334649053,4.089,2612.4,2611.4,15.4486]
[1724334649255,0.7478,2612.7,2611.9,0.38276]
[1724334649461,0.38268,2612.6,2612.1,0.38274]
[1724334649662,0.0027996,2612.6,2611.8,3.2078]
[1724334649964,0.0027996,2612.6,2612.1,3.2078]
[1724334650150,0.0027996,2612.6,2612.1,3.59053]
[1724334650355,0.0027996,2612.6,2612.2,0.38272]
[1724334650661,0.00574064,2612.5,2612.1,0.38273]
[1724334651057,0.00574064,2612.5,2612.2,3.2078]
[1724334651458,0.00574064,2612.5,2612.1,0.38274]
[1724334651660,0.00574064,2612.5,2612.1,3.2078]
[1724334651955,0.00574064,2612.5,2611.9,0.00574064]
[1724334652161,0.38272,2612.3,2611.9,0.00574064]
[1724334652365,0.3827,2612.4,2611.9,0.00574064]
[1724334652558,0.00574064,2612.5,2611.9,0.00574064]
[1724334652762,0.00574064,2612.5,2612.3,0.38269]
[1724334652957,0.00574064,2612.5,2612.2,0.38272]
[1724334653162,0.00574064,2612.5,2612.1,3.2078]
[1724334653664,0.00574064,2612.5,2611.9,0.00574064]
[1724334653665,0.00574064,2612.5,2612.0,0.38274]
[1724334653856,0.00574064,2612.5,2612.2,3.2078]
[1724334654268,0.00574064,2612.5,2612.4,0.38269]
[1724334654858,0.00574064,2612.5,2612.4,4.21069]
[1724334655068,0.0027996,2612.6,2612.5,0.38268]
[1724334655263,0.0027996,2612.6,2612.5,12.41848]
[1724334655456,0.0027996,2612.6,2612.5,7.41848]
[1724334655959,3.2078,2613.3,2613.0,0.3826]
[1724334656150,4.089,2613.6,2612.5,12.0358]
[1724334656151,0.00574064,2613.4,2612.8,3.2078]
[1724334656455,0.00574064,2613.4,2613.3,0.38256]
[1724334656774,0.00574064,2613.4,2613.3,5.38256]
[1724334656957,4.47417406,2614.2,2613.3,8.82935325]
[1724334657162,0.38246,2614.0,2613.3,3.21075325]
[1724334657566,0.38245,2614.1,2613.6,0.38251]
[1724334657758,0.38247,2614.0,2613.5,0.38253]
[1724334658061,0.38248,2613.9,2613.5,0.00574064]
[1724334658256,0.38252,2613.6,2613.5,0.00574064]
[1724334658457,0.7607,2613.9,2613.5,0.00574064]
[1724334658657,0.3825,2613.8,2613.5,0.00574064]
[1724334658868,0.7607,2613.9,2613.5,0.00574064]
[1724334658869,1.14319,2613.9,2613.5,0.00574064]
[1724334659163,0.00574064,2614.0,2613.5,0.00574064]
[1724334659859,0.00574064,2614.0,2613.9,0.38248]
[1724334660264,0.00574064,2614.0,2613.5,3.21354064]
[1724334660671,0.00574064,2614.0,2613.5,0.00574064]
[1724334660969,0.38252,2613.6,2613.5,0.00574064]
[1724334661365,1.12102,2613.6,2613.5,0.00574064]
[1724334661665,4.94742,2613.6,2613.5,0.00574064]
[1724334661863,9.94742,2613.6,2613.5,0.00574064]
[1724334662162,4.94742,2613.6,2613.5,0.00574064]
[1724334662372,0.3823,2613.6,2613.5,0.00574064]
[1724334662555,0.00574064,2614.0,2613.5,0.00574064]
[1724334662770,0.00574064,2614.0,2613.9,0.38247]
[1724334662965,0.00574064,2614.0,2613.5,0.00574064]
[1724334663361,0.3825,2613.8,2613.5,0.00574064]
[1724334663668,0.00574064,2614.0,2613.5,0.38827064]
[1724334663855,3.2078,2613.8,2613.5,0.00574064]
[1724334664056,0.38252,2613.6,2613.5,0.00574064]
[1724334664466,0.383,2613.7,2613.5,0.00574064]
[1724334664774,0.00574064,2614.0,2613.5,0.00574064]
[1724334664971,0.38252,2613.6,2613.5,0.00574064]
[1724334665266,1.33893,2613.4,2613.3,0.00295325]
[1724334665469,1.33893,2613.4,2612.5,0.38267]
[1724334665470,6.619,2613.4,2612.5,0.38267]
[1724334665657,0.38266,2612.7,2612.4,0.38269]
[1724334665857,0.38267,2612.6,2612.3,0.3827]
[1724334666062,3.2078,2612.8,2611.8,3.2078]
[1724334666270,0.00574064,2612.6,2612.1,0.38273]
[1724334666463,0.00574064,2612.6,2612.1,0.00291049]
[1724334666766,0.38841064,2612.6,2612.1,0.00291049]
[1724334666970,0.38269,2612.5,2612.1,0.00291049]
[1724334667172,0.00574064,2612.6,2612.1,0.00291049]
[1724334667369,0.00574064,2612.6,2612.1,3.21071049]
[1724334667572,0.38841064,2612.6,2612.1,3.59345049]
[1724334667770,0.00574064,2612.6,2612.1,0.00291049]
[1724334667968,0.38269,2612.5,2612.1,0.00291049]
[1724334668174,0.00574064,2612.6,2612.2,0.38272]
[1724334668373,0.00574064,2612.6,2612.1,0.38564049]
[1724334668565,0.00574064,2612.6,2612.1,0.00291049]
[1724334668983,0.00574064,2612.6,2612.2,0.38272]
[1724334669169,0.00574064,2612.6,2612.1,0.38564049]
[1724334669472,0.38841064,2612.6,2612.1,0.00291049]
[1724334669675,0.38268,2612.5,2612.1,0.00291049]
[1724334669974,3.2078,2612.5,2612.1,0.00291049]
[1724334670161,0.38272,2612.2,2612.1,0.00291049]
[1724334670358,0.38620537,2612.2,2612.1,0.00291049]
[1724334670567,4.21420537,2612.2,2612.1,0.00291049]
[1724334670970,3.83148537,2612.2,2612.1,0.00291049]
[1724334671160,7.42200537,2612.2,2612.1,0.00291049]
[1724334671364,3.828,2612.1,2611.5,3.2078]
[1724334671664,0.3853,2612.0,2611.5,3.2078]
[1724334671868,0.38282,2611.6,2611.1,0.75938]
[1724334672082,0.38282,2611.6,2611.1,3.96718]
[1724334672268,4.16478,2611.8,2611.1,3.21194756]
[1724334672469,0.347,2611.5,2611.1,3.2176882]
[1724334672665,0.3853,2612.0,2611.1,3.2176882]
[1724334672867,0.347,2611.9,2611.1,0.0098882]
[1724334673073,0.38281,2611.6,2611.2,0.38286]
[1724334673371,3.2078,2611.8,2611.1,0.0098882]
[1724334673674,0.38284,2611.4,2611.1,0.0098882]
[1724334673881,3.59059,2611.8,2611.4,0.38284]